[Event "Estonian Women's Chess Championship 2021"]
[Site "Tallinn, Paul Keres Chess House, Estonia"]
[Date "2021.12.14"]
[Round "4.3"]
[White "Levchenko, Marina"]
[Black "Haapsal, Maria Ioanna"]
[Result "1-0"]
[TimeControl "90 minutes for first 40 moves and 15 min. for the rest of the game with 30 sec."]
[WhiteFideId "4508548"]
[BlackFideId "4512286"]
[WhiteElo "1367"]
[BlackElo "1441"]

1. c4 {[%clk 01:30:57]} {[%emt 00:00:02]} c5 {[%clk 01:30:48]} {[%emt
00:00:12]} 2. Nf3 {[%clk 01:31:15]} {[%emt 00:00:12]} Nf6 {[%clk 01:31:04]}
{[%emt 00:00:14]} 3. d4 {[%clk 01:31:35]} {[%emt 00:00:11]} cxd4 {[%clk
01:31:19]} {[%emt 00:00:15]} 4. Nxd4 {[%clk 01:31:49]} {[%emt 00:00:16]} d5
{[%clk 01:31:20]} {[%emt 00:00:29]} 5. cxd5 {[%clk 01:30:19]} {[%emt 00:02:00]}
Nxd5 {[%clk 01:31:32]} {[%emt 00:00:18]} 6. e4 {[%clk 01:28:01]} {[%emt
00:02:48]} Nb4 {[%clk 01:30:55]} {[%emt 00:01:06]} 7. Qa4+ {[%clk 01:21:45]}
{[%emt 00:06:46]} N8c6 {[%clk 01:30:14]} {[%emt 00:01:11]} 8. Nxc6 {[%clk
01:20:36]} {[%emt 00:01:39]} Nxc6 {[%clk 01:30:32]} {[%emt 00:00:12]} 9. Be3
{[%clk 01:19:43]} {[%emt 00:01:23]} e6 {[%clk 01:28:30]} {[%emt 00:02:31]} 10.
a3 {[%clk 01:17:09]} {[%emt 00:03:05]} Bd7 {[%clk 01:27:16]} {[%emt 00:01:44]}
11. Qd1 {[%clk 01:14:50]} {[%emt 00:02:49]} Be7 {[%clk 01:25:42]} {[%emt
00:02:03]} 12. Be2 {[%clk 01:14:14]} {[%emt 00:01:08]} O-O {[%clk 01:25:29]}
{[%emt 00:00:43]} 13. Nc3 {[%clk 01:13:17]} {[%emt 00:01:26]} Rc8 {[%clk
01:16:11]} {[%emt 00:09:48]} 14. O-O {[%clk 01:12:28]} {[%emt 00:01:19]} a6
{[%clk 01:14:21]} {[%emt 00:02:20]} 15. Rc1 {[%clk 01:08:57]} {[%emt 00:04:01]}
Qc7 {[%clk 01:11:30]} {[%emt 00:03:21]} 16. Na4 {[%clk 00:55:50]} {[%emt
00:13:37]} b5 {[%clk 00:45:14]} {[%emt 00:26:46]} 17. Nb6 {[%clk 00:35:14]}
{[%emt 00:21:05]} Rcd8 {[%clk 00:44:32]} {[%emt 00:01:13]} 18. Qc2 {[%clk
00:32:22]} {[%emt 00:03:23]} Be8 {[%clk 00:43:21]} {[%emt 00:01:40]} 19. a4
{[%clk 00:29:41]} {[%emt 00:03:13]} Qb8 {[%clk 00:19:06]} {[%emt 00:24:43]} 20.
axb5 {[%clk 00:15:35]} {[%emt 00:14:36]} Nb4 {[%clk 00:16:54]} {[%emt
00:02:42]} 21. Qb3 {[%clk 00:12:26]} {[%emt 00:03:39]} axb5 {[%clk 00:14:01]}
{[%emt 00:03:23]} 22. Rfd1 {[%clk 00:09:09]} {[%emt 00:03:47]} Rxd1+ {[%clk
00:12:54]} {[%emt 00:01:37]} 23. Rxd1 {[%clk 00:06:21]} {[%emt 00:03:19]} Qb7
{[%clk 00:05:11]} {[%emt 00:08:12]} 24. e5 {[%clk 00:03:24]} {[%emt 00:03:26]}
Qc7 {[%clk 00:02:59]} {[%emt 00:02:42]} 25. Qc3 {[%clk 00:02:10]} {[%emt
00:01:44]} Qb7 {[%clk 00:01:26]} {[%emt 00:02:01]} 26. Nc8 {[%clk 00:01:33]}
{[%emt 00:01:09]} Nd5 {[%clk 00:00:54]} {[%emt 00:01:03]} 27. Nxe7+ {[%clk
00:01:46]} {[%emt 00:00:17]} Qxe7 {[%clk 00:01:11]} {[%emt 00:00:13]} 28. Qc5
{[%clk 00:00:48]} {[%emt 00:01:27]} Qb7 {[%clk 00:01:00]} {[%emt 00:00:41]} 29.
Ra1 {[%clk 00:00:45]} {[%emt 00:00:34]} Nxe3 {[%clk 00:01:10]} {[%emt
00:00:20]} 30. Qxe3 {[%clk 00:00:57]} {[%emt 00:00:17]} Bc6 {[%clk 00:01:25]}
{[%emt 00:00:14]} 31. Ra7 {[%clk 00:00:56]} {[%emt 00:00:31]} Qb8 {[%clk
00:01:01]} {[%emt 00:00:54]} 32. h3 {[%clk 00:00:49]} {[%emt 00:00:37]} h6
{[%clk 00:01:19]} {[%emt 00:00:12]} 33. Qc5 {[%clk 00:00:39]} {[%emt 00:00:41]}
Rc8 {[%clk 00:00:41]} {[%emt 00:01:08]} 34. Qe3 {[%clk 00:00:33]} {[%emt
00:00:36]} Rf8 {[%clk 00:00:53]} {[%emt 00:00:18]} 35. Qc5 {[%clk 00:00:41]}
{[%emt 00:00:21]} Rc8 {[%clk 00:01:04]} {[%emt 00:00:20]} 36. Qe3 {[%clk
00:00:53]} {[%emt 00:00:18]} Rc7 {[%clk 00:00:38]} {[%emt 00:00:56]} 37. Rxc7
{[%clk 00:00:38]} {[%emt 00:00:44]} Qxc7 {[%clk 00:01:05]} {[%emt 00:00:04]} 38.
Qc5 {[%clk 00:00:34]} {[%emt 00:00:34]} Qb7 {[%clk 00:01:24]} {[%emt 00:00:11]}
39. Bf1 {[%clk 00:00:51]} {[%emt 00:00:12]} Qc7 {[%clk 00:00:44]} {[%emt
00:01:10]} 40. Bxb5 {[%clk 00:15:57]} {[%emt 00:00:25]} Qa5 {[%clk 00:15:37]}
{[%emt 00:00:36]} 41. Qxc6 {[%clk 00:15:18]} {[%emt 00:01:09]} Qa1+ {[%clk
00:15:34]} {[%emt 00:00:29]} 42. Kh2 {[%clk 00:13:32]} {[%emt 00:02:20]} Qxb2
{[%clk 00:15:29]} {[%emt 00:00:35]} 43. Qe8+ {[%clk 00:13:41]} {[%emt
00:00:21]} Kh7 {[%clk 00:15:51]} {[%emt 00:00:08]} 44. Bd3+ {[%clk 00:14:01]}
{[%emt 00:00:09]} g6 {[%clk 00:16:08]} {[%emt 00:00:14]} 45. Qxf7+ {[%clk
00:14:21]} {[%emt 00:00:10]} Kh8 {[%clk 00:16:31]} {[%emt 00:00:06]} 46. Qf6+
{[%clk 00:13:23]} {[%emt 00:01:29]} Kg8 {[%clk 00:16:46]} {[%emt 00:00:12]} 47.
Qxe6+ {[%clk 00:13:36]} {[%emt 00:00:20]} Kg7 {[%clk 00:16:54]} {[%emt
00:00:20]} 48. Qf6+ {[%clk 00:13:28]} {[%emt 00:00:38]} Kg8 {[%clk 00:17:19]}
{[%emt 00:00:06]} 49. Bxg6 {[%clk 00:13:50]} {[%emt 00:00:09]} Qb7 {[%clk
00:17:26]} {[%emt 00:00:22]} 50. e6 {[%clk 00:13:50]} {[%emt 00:00:30]} Qc7+
{[%clk 00:17:41]} {[%emt 00:00:14]} 51. f4 {[%clk 00:13:55]} {[%emt 00:00:26]}
h5 {[%clk 00:17:18]} {[%emt 00:00:53]} 52. e7 {[%clk 00:13:51]} {[%emt
00:00:34]} Qxf4+ {[%clk 00:17:16]} {[%emt 00:00:32]} 53. Qxf4 {[%clk 00:14:11]}
{[%emt 00:00:10]} h4 {[%clk 00:17:39]} {[%emt 00:00:07]} 54. Qf8# {[%emt
00:00:24]} 1-0

[Event "Estonian Women's Chess Championship 2021"]
[Site "Tallinn, Paul Keres Chess House, Estonia"]
[Date "2021.12.14"]
[Round "4.4"]
[White "Blokhin, Sofia"]
[Black "Sinitsina, Anastassia"]
[Result "0-1"]
[TimeControl "90 minutes for first 40 moves and 15 min. for the rest of the game with 30 sec."]
[WhiteTitle "WCM"]
[BlackTitle "WFM"]
[WhiteFideId "4508190"]
[BlackFideId "4504640"]
[WhiteElo "2032"]
[BlackElo "2159"]

1. e4 {[%clk 01:30:58]} {[%emt 00:00:02]} e5 {[%clk 01:30:53]} {[%emt
00:00:08]} 2. Bc4 {[%clk 01:31:19]} {[%emt 00:00:05]} Nf6 {[%clk 01:30:51]}
{[%emt 00:00:35]} 3. d3 {[%clk 01:31:40]} {[%emt 00:00:09]} Nc6 {[%clk
01:30:49]} {[%emt 00:00:33]} 4. Nf3 {[%clk 01:32:01]} {[%emt 00:00:08]} Bc5
{[%clk 01:30:58]} {[%emt 00:00:21]} 5. c3 {[%clk 01:32:25]} {[%emt 00:00:06]}
d6 {[%clk 01:27:52]} {[%emt 00:03:35]} 6. b4 {[%clk 01:32:36]} {[%emt
00:00:19]} Bb6 {[%clk 01:28:14]} {[%emt 00:00:09]} 7. a4 {[%clk 01:32:29]}
{[%emt 00:00:36]} a5 {[%clk 01:23:54]} {[%emt 00:04:51]} 8. b5 {[%clk
01:32:54]} {[%emt 00:00:05]} Ne7 {[%clk 01:24:03]} {[%emt 00:00:21]} 9. O-O
{[%clk 01:30:43]} {[%emt 00:02:40]} O-O {[%clk 01:23:54]} {[%emt 00:00:39]} 10.
Bb3 {[%clk 01:24:38]} {[%emt 00:06:34]} Ng6 {[%clk 01:22:22]} {[%emt 00:02:03]}
11. Nbd2 {[%clk 01:19:58]} {[%emt 00:05:09]} c6 {[%clk 01:17:16]} {[%emt
00:05:37]} 12. Ba3 {[%clk 01:12:36]} {[%emt 00:07:51]} Re8 {[%clk 01:14:53]}
{[%emt 00:02:53]} 13. Nc4 {[%clk 01:08:15]} {[%emt 00:04:51]} Bc7 {[%clk
01:15:09]} {[%emt 00:00:14]} 14. Ng5 {[%clk 01:00:15]} {[%emt 00:08:29]} d5
{[%clk 01:12:09]} {[%emt 00:03:31]} 15. exd5 {[%clk 00:56:05]} {[%emt
00:04:41]} cxd5 {[%clk 01:11:55]} {[%emt 00:00:44]} 16. Ne3 {[%clk 00:52:01]}
{[%emt 00:04:32]} h6 {[%clk 01:10:26]} {[%emt 00:02:00]} 17. Nf3 {[%clk
00:49:03]} {[%emt 00:03:27]} Be6 {[%clk 01:08:22]} {[%emt 00:02:34]} 18. c4
{[%clk 00:45:52]} {[%emt 00:03:42]} Nf4 {[%clk 01:04:07]} {[%emt 00:04:45]} 19.
c5 {[%clk 00:36:38]} {[%emt 00:09:44]} Rc8 {[%clk 00:56:34]} {[%emt 00:08:04]}
20. d4 {[%clk 00:29:43]} {[%emt 00:07:24]} e4 {[%clk 00:55:25]} {[%emt
00:01:39]} 21. Ne1 {[%clk 00:26:57]} {[%emt 00:03:15]} Qd7 {[%clk 00:53:06]}
{[%emt 00:02:51]} 22. Kh1 {[%clk 00:22:06]} {[%emt 00:05:21]} Nh7 {[%emt
00:04:39]} 23. b6 {[%clk 00:20:53]} {[%emt 00:01:41]} Bd8 {[%clk 00:47:40]}
{[%emt 00:01:48]} 24. Qd2 {[%clk 00:20:48]} {[%emt 00:00:35]} Ra8 {[%clk
00:45:31]} {[%emt 00:02:40]} 25. Bb2 {[%clk 00:20:25]} {[%emt 00:00:53]} Ng6
{[%clk 00:44:07]} {[%emt 00:01:54]} 26. Bc3 {[%clk 00:18:45]} {[%emt 00:02:10]}
f5 {[%clk 00:44:12]} {[%emt 00:00:25]} 27. Qa2 {[%clk 00:18:17]} {[%emt
00:00:58]} Ne7 {[%clk 00:43:03]} {[%emt 00:01:39]} 28. f4 {[%clk 00:17:33]}
{[%emt 00:01:14]} Nf6 {[%clk 00:42:54]} {[%emt 00:00:40]} 29. N1c2 {[%clk
00:16:10]} {[%emt 00:01:53]} Kh7 {[%clk 00:40:58]} {[%emt 00:02:26]} 30. Na3
{[%clk 00:16:06]} {[%emt 00:00:33]} Ng4 {[%clk 00:37:56]} {[%emt 00:03:32]} 31.
Qe2 {[%clk 00:14:10]} {[%emt 00:02:26]} Nxe3 {[%clk 00:36:53]} {[%emt
00:01:34]} 32. Qxe3 {[%clk 00:14:35]} {[%emt 00:00:05]} Nc6 {[%clk 00:37:06]}
{[%emt 00:00:17]} 33. Nb5 {[%clk 00:14:32]} {[%emt 00:00:32]} Rg8 {[%clk
00:36:55]} {[%emt 00:00:41]} 34. Bd1 {[%clk 00:13:41]} {[%emt 00:01:21]} Bf6
{[%clk 00:32:40]} {[%emt 00:04:46]} 35. Nc7 {[%clk 00:12:15]} {[%emt 00:01:56]}
Raf8 {[%clk 00:31:34]} {[%emt 00:01:35]} 36. g3 {[%clk 00:08:50]} {[%emt
00:03:56]} g5 {[%clk 00:28:53]} {[%emt 00:03:12]} 37. Ra2 {[%clk 00:08:19]}
{[%emt 00:01:01]} gxf4 {[%clk 00:28:42]} {[%emt 00:00:41]} 38. gxf4 {[%clk
00:08:40]} {[%emt 00:00:08]} Rg7 {[%clk 00:28:08]} {[%emt 00:01:04]} 39. Be2
{[%clk 00:08:08]} {[%emt 00:01:03]} Bd8 {[%clk 00:27:34]} {[%emt 00:01:04]} 40.
Nxe6 {[%clk 00:20:08]} {[%emt 00:03:30]} Qxe6 {[%clk 00:42:57]} {[%emt
00:00:07]} 41. Bb5 {[%clk 00:20:23]} {[%emt 00:00:14]} Bf6 {[%clk 00:42:29]}
{[%emt 00:00:59]} 42. Bxc6 {[%clk 00:17:02]} {[%emt 00:03:52]} Qxc6 {[%clk
00:42:53]} {[%emt 00:00:05]} 43. Qe2 {[%clk 00:17:19]} {[%emt 00:00:12]} Rfg8
{[%clk 00:41:35]} {[%emt 00:01:48]} 44. Qb5 {[%clk 00:16:01]} {[%emt 00:01:49]}
Qe6 {[%clk 00:41:37]} {[%emt 00:00:28]} 45. Re2 {[%clk 00:12:05]} {[%emt
00:04:25]} Qf7 {[%clk 00:40:47]} {[%emt 00:01:21]} 46. Qb1 {[%clk 00:11:45]}
{[%emt 00:00:51]} Qh5 {[%clk 00:41:01]} {[%emt 00:00:15]} 47. Ref2 {[%clk
00:05:35]} {[%emt 00:06:40]} Qh3 {[%clk 00:40:07]} {[%emt 00:01:24]} 48. Qc2
{[%clk 00:05:01]} {[%emt 00:01:03]} Bh4 {[%clk 00:39:26]} {[%emt 00:01:11]} 0-1

[Event "Estonian Women's Chess Championship 2021"]
[Site "Tallinn, Paul Keres Chess House, Estonia"]
[Date "2021.12.15"]
[Round "5.1"]
[White "Ivanova, Lidia"]
[Black "Shadrina, Eva"]
[Result "1-0"]
[TimeControl "90 minutes for first 40 moves and 15 min. for the rest of the game with 30 sec."]
[WhiteFideId "4506480"]
[BlackFideId "4510623"]
[WhiteElo "1443"]
[BlackElo "1472"]

1. e4 {[%clk 01:30:57]} c5 {[%clk 01:30:51]} 2. Nf3 {[%clk 01:30:38]} Nc6
{[%clk 01:31:06]} 3. d4 {[%clk 01:30:20]} cxd4 {[%clk 01:31:16]} 4. Nxd4 {[%clk
01:30:44]} Nf6 {[%clk 01:31:28]} 5. Nc3 {[%clk 01:31:07]} e5 {[%clk 01:31:23]}
6. Ndb5 {[%clk 01:31:28]} d6 {[%clk 01:31:44]} 7. Bg5 {[%clk 01:31:19]} a6
{[%clk 01:31:33]} 8. Na3 {[%clk 01:31:41]} b5 {[%clk 01:31:52]} 9. Nd5 {[%clk
01:32:04]} Be7 {[%clk 01:32:05]} 10. Bxf6 {[%clk 01:32:20]} Bxf6 {[%clk
01:32:18]} 11. c3 {[%clk 01:32:43]} O-O {[%clk 01:31:23]} 12. Nc2 {[%clk
01:33:01]} Bg5 {[%clk 01:30:47]} 13. h4 {[%clk 01:33:07]} Bh6 {[%clk 01:25:22]}
14. g4 {[%clk 01:33:19]} Bf4 {[%clk 01:22:12]} 15. Qf3 {[%clk 01:33:39]} Ne7
{[%clk 01:03:49]} {[%emt 00:00:07]} 16. Nxf4 {[%clk 01:32:25]} exf4 17. Qxf4
{[%clk 01:31:58]} Ng6 {[%clk 01:03:56]} 18. Qg3 {[%clk 01:31:24]} Ne5 {[%clk
00:54:27]} {[%emt 00:03:31]} 19. f4 {[%clk 01:06:21]} {[%emt 00:25:33]} Nxg4
{[%clk 00:36:54]} {[%emt 00:18:03]} 20. f5 {[%clk 01:02:50]} {[%emt 00:04:01]}
Ne5 {[%clk 00:33:28]} {[%emt 00:03:57]} 21. Rg1 {[%clk 00:45:57]} {[%emt
00:17:22]} Qf6 {[%clk 00:31:53]} {[%emt 00:02:05]} 22. O-O-O {[%clk 00:46:11]}
{[%emt 00:00:15]} Rd8 {[%clk 00:30:54]} {[%emt 00:01:29]} 23. Ne3 {[%clk
00:40:12]} {[%emt 00:06:29]} Bb7 {[%clk 00:23:33]} {[%emt 00:07:51]} 24. Nd5
{[%clk 00:39:42]} {[%emt 00:00:59]} Bxd5 {[%clk 00:23:03]} {[%emt 00:01:01]} 25.
Rxd5 {[%clk 00:39:49]} {[%emt 00:00:23]} Rac8 {[%clk 00:17:11]} {[%emt
00:06:22]} 26. Kb1 {[%clk 00:38:49]} {[%emt 00:01:29]} Rc5 {[%clk 00:16:17]}
{[%emt 00:01:24]} 27. Rd2 {[%clk 00:38:37]} {[%emt 00:00:42]} d5 {[%clk
00:11:14]} {[%emt 00:05:35]} 28. h5 {[%clk 00:30:34]} {[%emt 00:08:32]} a5
{[%clk 00:06:47]} {[%emt 00:04:57]} 29. h6 {[%clk 00:29:46]} {[%emt 00:01:18]}
g6 {[%clk 00:06:20]} {[%emt 00:00:58]} 30. fxg6 {[%clk 00:22:08]} {[%emt
00:08:06]} fxg6 {[%clk 00:06:01]} {[%emt 00:00:48]} 31. Bg2 {[%clk 00:18:00]}
{[%emt 00:04:38]} dxe4 {[%clk 00:03:25]} {[%emt 00:03:07]} 32. Rxd8+ {[%clk
00:12:13]} {[%emt 00:06:17]} Qxd8 {[%clk 00:03:44]} {[%emt 00:00:11]} 33. Bxe4
{[%clk 00:12:19]} {[%emt 00:00:24]} Qf6 {[%clk 00:02:00]} {[%emt 00:02:14]} 34.
Qe3 {[%clk 00:10:58]} {[%emt 00:01:50]} Qd6 {[%clk 00:01:09]} {[%emt 00:01:21]}
35. Qe2 {[%clk 00:08:50]} {[%emt 00:02:39]} b4 {[%clk 00:00:54]} {[%emt
00:00:46]} 36. Rd1 {[%clk 00:08:39]} {[%emt 00:00:40]} Qc7 {[%clk 00:00:36]}
{[%emt 00:00:48]} 37. Bd5+ {[%clk 00:07:54]} {[%emt 00:01:14]} Kf8 {[%clk
00:00:48]} {[%emt 00:00:20]} 38. Qf2+ {[%clk 00:05:53]} {[%emt 00:02:31]} Ke8
{[%clk 00:01:02]} {[%emt 00:00:17]} 39. Qf6 {[%clk 00:03:20]} {[%emt 00:03:02]}
Qe7 {[%clk 00:00:40]} {[%emt 00:00:52]} 40. Qh8+ {[%clk 00:18:00]} {[%emt
00:00:50]} Kd7 {[%clk 00:15:58]} {[%emt 00:00:12]} 41. Qg7 {[%clk 00:11:09]}
{[%emt 00:07:20]} Ke8 {[%clk 00:09:58]} {[%emt 00:06:31]} 42. Bb3 {[%clk
00:07:52]} {[%emt 00:03:47]} Nd7 {[%clk 00:02:11]} {[%emt 00:08:17]} 43. Ba4
{[%clk 00:04:58]} {[%emt 00:03:25]} Rc7 {[%clk 00:00:58]} {[%emt 00:01:43]} 44.
Qg8+ {[%clk 00:04:43]} {[%emt 00:00:44]} Qf8 {[%clk 00:01:18]} {[%emt
00:00:10]} 45. Re1+ {[%clk 00:03:06]} {[%emt 00:02:07]} Kd8 {[%clk 00:01:40]}
{[%emt 00:00:09]} 46. Qxf8+ {[%clk 00:03:24]} {[%emt 00:00:12]} Nxf8 {[%clk
00:02:05]} {[%emt 00:00:05]} 47. Re8# {[%clk 00:03:44]} {[%emt 00:00:09]} 1-0

[Event "Estonian Women's Chess Championship 2021"]
[Site "Tallinn, Paul Keres Chess House, Estonia"]
[Date "2021.12.15"]
[Round "5.2"]
[White "Narva, Triin"]
[Black "Levchenko, Marina"]
[Result "1-0"]
[TimeControl "90 minutes for first 40 moves and 15 min. for the rest of the game with 30 sec."]
[WhiteTitle "WFM"]
[WhiteFideId "4502680"]
[BlackFideId "4508548"]
[WhiteElo "2112"]
[BlackElo "1367"]

1. e4 {[%clk 01:30:47]} e6 {[%clk 01:30:51]} 2. d4 {[%clk 01:30:58]} d5 {[%clk
01:31:14]} 3. Nd2 {[%clk 01:29:23]} c5 {[%clk 01:30:55]} 4. Ngf3 {[%clk
01:29:42]} cxd4 {[%clk 01:31:07]} 5. Nxd4 {[%clk 01:29:54]} Nc6 {[%clk
01:31:23]} 6. Nxc6 {[%clk 01:26:13]} bxc6 {[%clk 01:31:43]} 7. Bd3 {[%clk
01:19:54]} Qc7 {[%clk 01:27:58]} 8. Qe2 {[%clk 01:02:22]} {[%emt 00:00:06]} Bd6
{[%clk 01:20:21]} 9. Nf3 {[%clk 00:58:19]} {[%emt 00:01:12]} dxe4 {[%clk
01:16:52]} {[%emt 00:03:59]} 10. Qxe4 {[%clk 00:55:51]} {[%emt 00:02:58]} Nf6
{[%clk 01:15:24]} {[%emt 00:01:58]} 11. Qh4 {[%clk 00:54:36]} {[%emt 00:01:45]}
h6 {[%clk 01:08:52]} {[%emt 00:07:02]} 12. Bd2 {[%clk 00:51:39]} {[%emt
00:03:27]} Bb7 {[%clk 01:02:53]} {[%emt 00:06:29]} 13. Bc3 {[%clk 00:39:45]}
{[%emt 00:12:26]} Be7 {[%clk 00:57:22]} {[%emt 00:06:00]} 14. Qa4 {[%clk
00:38:44]} {[%emt 00:01:31]} O-O {[%clk 00:52:57]} {[%emt 00:04:56]} 15. Ne5
{[%clk 00:25:40]} {[%emt 00:13:34]} Nd5 {[%clk 00:37:01]} {[%emt 00:16:25]} 16.
Qe4 {[%clk 00:19:53]} {[%emt 00:06:17]} f5 {[%clk 00:32:27]} {[%emt 00:05:04]}
17. Qc4 {[%clk 00:18:39]} {[%emt 00:01:45]} Bf6 {[%clk 00:30:09]} {[%emt
00:02:48]} 18. Ng6 {[%clk 00:13:14]} {[%emt 00:05:54]} Bxc3+ {[%clk 00:26:36]}
{[%emt 00:04:04]} 19. bxc3 {[%clk 00:13:39]} {[%emt 00:00:05]} Rf6 {[%clk
00:25:51]} {[%emt 00:01:15]} 20. Nh4 {[%clk 00:13:24]} {[%emt 00:00:44]} g5
{[%clk 00:17:43]} {[%emt 00:08:38]} 21. Nf3 {[%clk 00:13:43]} {[%emt 00:00:11]}
e5 {[%clk 00:17:36]} {[%emt 00:00:38]} 22. Nd2 {[%clk 00:13:20]} {[%emt
00:00:53]} e4 {[%clk 00:16:12]} {[%emt 00:01:54]} 23. Be2 {[%clk 00:13:20]}
{[%emt 00:00:30]} Qe5 {[%clk 00:14:04]} {[%emt 00:02:38]} 24. Rb1 {[%clk
00:11:50]} {[%emt 00:01:59]} Rf7 {[%clk 00:13:42]} {[%emt 00:00:53]} 25. Rb3
{[%clk 00:11:49]} {[%emt 00:00:31]} e3 {[%clk 00:13:05]} {[%emt 00:01:06]} 26.
Nf1 {[%clk 00:08:36]} {[%emt 00:03:43]} exf2+ {[%clk 00:11:23]} {[%emt
00:02:12]} 27. Kxf2 {[%clk 00:08:49]} {[%emt 00:00:16]} Re8 {[%clk 00:09:51]}
{[%emt 00:02:03]} 28. Bh5 {[%clk 00:05:47]} {[%emt 00:03:32]} Qe1+ {[%clk
00:03:57]} {[%emt 00:06:24]} 29. Kg1 {[%clk 00:06:12]} {[%emt 00:00:05]} Rfe7
{[%clk 00:02:57]} {[%emt 00:01:31]} 30. Bxe8 {[%clk 00:05:34]} {[%emt
00:01:08]} Re2 {[%clk 00:02:31]} {[%emt 00:00:55]} 31. Bf7+ {[%clk 00:04:39]}
{[%emt 00:01:25]} Kh7 {[%clk 00:01:59]} {[%emt 00:01:03]} 32. Qxe2 {[%clk
00:01:59]} {[%emt 00:03:10]} Qxe2 {[%clk 00:02:12]} {[%emt 00:00:18]} 33. Rxb7
{[%clk 00:02:26]} {[%emt 00:00:03]} Qa6 {[%clk 00:01:32]} {[%emt 00:01:10]} 34.
Rb3 {[%clk 00:02:15]} {[%emt 00:00:41]} Nf4 {[%clk 00:00:40]} {[%emt 00:01:22]}
35. h4 {[%clk 00:00:50]} {[%emt 00:01:54]} Qe2 {[%clk 00:00:36]} {[%emt
00:00:34]} 36. Rh2 {[%clk 00:01:01]} {[%emt 00:00:19]} Kg7 {[%clk 00:00:35]}
{[%emt 00:00:31]} 37. g3 {[%clk 00:00:52]} {[%emt 00:00:40]} Qg4 {[%clk
00:00:41]} {[%emt 00:00:23]} 38. Rb7 {[%clk 00:00:55]} {[%emt 00:00:27]} Kf6
{[%clk 00:00:39]} {[%emt 00:00:32]} 39. hxg5+ {[%clk 00:01:17]} {[%emt
00:00:09]} Qxg5 {[%clk 00:00:31]} {[%emt 00:00:38]} 40. Bc4 {[%clk 00:16:15]}
{[%emt 00:00:31]} Nd5 {[%clk 00:15:35]} {[%emt 00:00:27]} 41. Bxd5 {[%clk
00:15:12]} {[%emt 00:01:33]} cxd5 {[%clk 00:15:29]} {[%emt 00:00:35]} 42. Rh7
{[%clk 00:15:33]} {[%emt 00:00:09]} Ke5 {[%clk 00:14:22]} {[%emt 00:01:37]} 43.
R7xh6 {[%clk 00:15:00]} {[%emt 00:01:03]} d4 {[%clk 00:12:45]} {[%emt
00:02:07]} 44. cxd4+ {[%clk 00:14:20]} {[%emt 00:01:10]} Kxd4 {[%clk 00:13:02]}
{[%emt 00:00:13]} 45. R6h4+ {[%clk 00:14:29]} {[%emt 00:00:21]} Kc5 {[%clk
00:12:47]} {[%emt 00:00:45]} 46. Rf4 {[%clk 00:14:41]} {[%emt 00:00:17]} Kc6
{[%clk 00:12:24]} {[%emt 00:00:54]} 47. Rhf2 {[%clk 00:14:55]} {[%emt
00:00:16]} Qd8 {[%clk 00:11:45]} {[%emt 00:01:09]} 48. Rxf5 {[%clk 00:15:02]}
{[%emt 00:00:23]} Qd4 {[%clk 00:11:57]} {[%emt 00:00:17]} 49. R5f4 {[%clk
00:14:56]} {[%emt 00:00:37]} Qc5 {[%clk 00:11:56]} {[%emt 00:00:31]} 50. c4
{[%clk 00:14:17]} {[%emt 00:01:09]} Kd5 {[%emt 00:00:51]} 1-0